bitfinex-derivatives/quotes_BTCF0:USTF0_20251130
["timestamp","ask_amount","ask_price","bid_price","bid_amount"]
[1764531352002,0.04588407,91455.0,91454.0,0.4149652]
[1764531356201,0.02310407,91455.0,91454.0,0.4149652]
[1764531357511,0.04588407,91455.0,91454.0,0.4149652]
[1764531360306,0.02310407,91455.0,91454.0,0.4149652]
[1764531360505,0.04572,91465.0,91464.0,0.066974]
[1764531360912,0.14211428,91465.0,91464.0,0.239254]
[1764531361217,0.0109326,91476.0,91475.0,0.04323]
[1764531361517,0.04572,91469.0,91468.0,0.05604]
[1764531361718,0.08572,91469.0,91468.0,0.05604]
[1764531361911,0.21260188,91469.0,91468.0,0.05604]
[1764531362510,0.21560188,91469.0,91468.0,0.04323]
[1764531363120,0.04588398,91485.0,91484.0,0.04323]
[1764531363305,0.04588398,91485.0,91484.0,0.05604]
[1764531363507,0.07768398,91485.0,91484.0,0.05604]
[1764531363710,0.04588398,91485.0,91484.0,0.05604]
[1764531365014,0.04688398,91485.0,91484.0,0.0849716]
[1764531365517,0.04588398,91485.0,91484.0,0.0669716]
[1764531365918,0.00016398,91485.0,91484.0,0.0669716]
[1764531367309,0.02310398,91485.0,91484.0,0.0669716]
[1764531369620,0.00016398,91485.0,91484.0,0.0669716]
[1764531370912,0.0109275,91519.0,91484.0,0.4277716]
[1764531371114,0.0566492,91505.0,91504.0,0.04323]
[1764531371515,0.1731358,91505.0,91504.0,0.04323]
[1764531372319,0.1741358,91505.0,91504.0,0.06323]
[1764531373218,0.1632066,91505.0,91504.0,0.06323]
[1764531373424,0.1741357,91505.0,91504.0,0.06323]
[1764531373811,0.1741357,91505.0,91504.0,0.06523]
[1764531376327,0.1741357,91505.0,91504.0,0.06323]
[1764531376727,0.1731357,91505.0,91504.0,0.04323]
[1764531378233,0.1731357,91505.0,91504.0,0.05593]
[1764531379225,0.19805723,91505.0,91504.0,0.05593]
[1764531380028,0.19805723,91505.0,91504.0,0.04323]
[1764531380621,0.19805816,91505.0,91504.0,0.04323]
[1764531382034,0.0546796,91501.0,91500.0,0.04539]
[1764531382728,0.0546796,91501.0,91500.0,0.05809]
[1764531383429,0.05224,91496.0,91495.0,0.00016398]
[1764531383735,0.2893886,91496.0,91495.0,0.00016398]
[1764531389431,0.2813886,91496.0,91495.0,0.04420398]
[1764531390436,0.04726338,91496.0,91495.0,0.40500398]
[1764531390623,0.0551689,91507.0,91506.0,0.04404]
[1764531390937,0.23289933,91507.0,91506.0,0.04404]
[1764531392535,0.20289933,91507.0,91506.0,0.04404]
[1764531392733,0.24289933,91507.0,91506.0,0.04404]
[1764531394242,0.0551696,91501.0,91500.0,0.04404]
[1764531394532,0.10924965,91501.0,91500.0,0.04404]
[1764531395932,0.10924965,91501.0,91500.0,0.13203113]
[1764531399128,0.10924965,91501.0,91500.0,0.14504113]
[1764531399329,0.06924965,91501.0,91500.0,0.14504113]
[1764531401438,0.10924965,91501.0,91500.0,0.13203113]
[1764531402338,0.08424,91501.0,91500.0,0.13203113]
[1764531402640,0.10926338,91501.0,91500.0,0.13203113]
[1764531402839,0.06926338,91501.0,91500.0,0.13203113]
[1764531404031,0.06926338,91501.0,91500.0,0.14471113]
[1764531406840,0.10926338,91501.0,91500.0,0.14471113]
[1764531415350,0.06926338,91501.0,91500.0,0.14471113]
[1764531426651,0.18452778,91501.0,91500.0,0.13203113]
[1764531430663,0.18452778,91501.0,91500.0,0.14471113]
[1764531431050,0.05213,91500.0,91499.0,0.3608]
[1764531431265,0.0551902,91496.0,91495.0,0.00016398]
[1764531431458,0.44101358,91496.0,91495.0,0.00016398]
[1764531431656,0.59550968,91496.0,91495.0,0.00016398]
[1764531432655,0.56550968,91496.0,91495.0,0.00016398]
[1764531434562,0.59550968,91496.0,91495.0,0.00016398]
[1764531434950,0.59550968,91496.0,91495.0,0.04562398]
[1764531436563,0.59550968,91496.0,91495.0,0.00016398]
[1764531436864,0.59550968,91496.0,91495.0,0.02174398]
[1764531438164,0.59550968,91496.0,91495.0,0.04431398]
[1764531444567,0.59550968,91496.0,91495.0,0.02174398]
[1764531444769,0.59550968,91496.0,91495.0,0.00016398]
[1764531446271,0.96550968,91496.0,91495.0,0.00016398]
[1764531447657,0.67550968,91496.0,91495.0,0.00016398]
[1764531448364,0.67550968,91496.0,91495.0,0.02211398]
[1764531451371,0.67550968,91496.0,91495.0,0.04498398]
[1764531452472,0.52124968,91496.0,91495.0,0.04498398]
[1764531452672,0.54424968,91496.0,91495.0,0.04498398]
[1764531452874,0.56657968,91496.0,91495.0,0.04498398]
[1764531458383,0.20577968,91496.0,91495.0,0.04498398]
[1764531465585,0.20577968,91496.0,91495.0,0.00016398]
[1764531466183,0.20577968,91496.0,91495.0,0.02151398]
[1764531466384,0.20577968,91496.0,91495.0,0.04431398]
[1764531467486,0.20577968,91496.0,91495.0,0.00016398]
[1764531474296,0.56657968,91496.0,91495.0,0.00016398]
[1764531477493,0.56657968,91496.0,91495.0,0.02151398]
[1764531477885,0.56657968,91496.0,91495.0,0.00016398]
[1764531478493,0.20577968,91496.0,91495.0,0.00016398]
[1764531478693,0.56657968,91496.0,91495.0,0.00016398]
[1764531482300,0.56657968,91496.0,91495.0,0.02151398]
[1764531484101,0.56657968,91496.0,91495.0,0.04431398]
[1764531487303,0.56657968,91496.0,91495.0,0.02151398]
[1764531487804,0.56657968,91496.0,91495.0,0.04431398]
[1764531489015,0.56657968,91496.0,91495.0,0.02151398]
[1764531490515,0.20577968,91496.0,91495.0,0.02151398]
[1764531490715,0.56657968,91496.0,91495.0,0.02151398]
[1764531492315,0.20577968,91496.0,91495.0,0.02151398]
[1764531492616,0.56657968,91496.0,91495.0,0.02151398]
[1764531493515,0.20577968,91496.0,91495.0,0.02151398]
[1764531493718,0.56657968,91496.0,91495.0,0.02151398]
[1764531494319,0.20577968,91496.0,91495.0,0.02151398]
[1764531494520,0.56657968,91496.0,91495.0,0.02151398]
[1764531494912,0.567262,91496.0,91495.0,0.02151398]
[1764531495916,0.567262,91496.0,91495.0,0.04376398]
[1764531496817,0.206462,91496.0,91495.0,0.04376398]
[1764531499621,0.206462,91496.0,91495.0,0.00016398]
[1764531505824,0.206462,91496.0,91495.0,0.04336398]
[1764531506022,0.206462,91496.0,91495.0,0.00016398]
[1764531507927,0.01037,91482.0,91475.0,0.02205]
[1764531508119,0.0558825,91476.0,91475.0,0.0432]
[1764531508421,0.23001388,91476.0,91475.0,0.0432]
[1764531509614,0.14413138,91476.0,91475.0,0.0432]
[1764531509828,0.11842568,91476.0,91475.0,0.0432]
[1764531510017,0.11842568,91476.0,91475.0,0.0541327]
[1764531510214,0.0558818,91482.0,91480.0,0.01355]
[1764531510521,0.0558818,91482.0,91481.0,0.0432]
[1764531510721,0.08163356,91482.0,91481.0,0.0432]
[1764531510920,0.19796647,91482.0,91481.0,0.0432]
[1764531518332,0.17221471,91482.0,91481.0,0.0432]
[1764531521624,0.11633291,91482.0,91481.0,0.0541319]
[1764531522026,0.14423914,91484.0,91483.0,0.0541316]
[1764531522337,0.1440123,91484.0,91483.0,0.0541316]
[1764531523834,0.1671923,91484.0,91483.0,0.0541316]
[1764531525837,0.01109548,91485.0,91484.0,0.04293]
[1764531525838,0.00016398,91485.0,91484.0,0.04293]
[1764531526138,0.00016398,91485.0,91484.0,0.40373]
[1764531526339,0.02178,91500.0,91499.0,0.0538598]
[1764531527239,0.04359,91500.0,91499.0,0.0538598]
[1764531530634,0.04359,91500.0,91499.0,0.4146598]
[1764531531534,0.04359,91500.0,91499.0,0.0538598]
[1764531531735,0.04359,91500.0,91499.0,0.4146598]
[1764531533138,0.04375398,91509.0,91508.0,0.04293]
[1764531533541,0.17061917,91509.0,91508.0,0.04293]
[1764531533737,0.17061917,91509.0,91508.0,0.40373]
[1764531533937,0.14880917,91509.0,91508.0,0.40373]
[1764531534339,0.14880917,91509.0,91508.0,0.40573]
[1764531535139,0.14880917,91509.0,91508.0,0.41473]
[1764531536243,0.00016398,91509.0,91508.0,0.41473]
[1764531538139,0.00016398,91509.0,91508.0,0.41573]
[1764531538944,0.0109273,91521.0,91508.0,0.41573]
[1764531538945,0.02205315,91526.0,91525.0,0.0538567]
[1764531540045,0.00027315,91526.0,91525.0,0.0558567]
[1764531540753,0.00027315,91526.0,91525.0,0.0538567]
[1764531541048,0.00027315,91526.0,91525.0,0.06518843]
[1764531548759,0.00027315,91526.0,91525.0,0.42598843]
[1764531551961,0.02205315,91526.0,91525.0,0.42598843]
[1764531552153,0.04386315,91526.0,91525.0,0.42598843]
[1764531555770,0.04386315,91526.0,91525.0,0.59806843]
[1764531561566,0.00027315,91526.0,91525.0,0.59806843]
[1764531562167,0.02150315,91526.0,91525.0,0.59806843]
[1764531562877,0.04290315,91526.0,91525.0,0.59806843]
[1764531568683,0.04290315,91526.0,91525.0,0.59802843]
[1764531569280,0.06839784,91526.0,91525.0,0.59802843]
[1764531570174,0.04290315,91526.0,91525.0,0.59802843]
[1764531571785,0.06837692,91526.0,91525.0,0.58710173]
[1764531575583,0.06837692,91526.0,91525.0,0.37213173]
[1764531575892,0.0549376,91517.0,91516.0,0.04339398]
[1764531576076,0.08041137,91517.0,91516.0,0.05642398]
[1764531577288,0.08041137,91517.0,91516.0,0.0676982]
[1764531577687,0.06948377,91517.0,91516.0,0.0676982]
[1764531577882,0.02547377,91517.0,91516.0,0.0676982]
[1764531578077,0.0109274,91520.0,91516.0,0.0676982]
[1764531578291,0.0109274,91520.0,91519.0,0.04323]
[1764531578584,0.15436014,91520.0,91519.0,0.04323]
[1764531579592,0.17587014,91520.0,91519.0,0.04323]
[1764531581792,0.19837014,91520.0,91519.0,0.04323]
[1764531584196,0.17292895,91520.0,91519.0,0.04323]
[1764531587903,0.04451315,91526.0,91525.0,0.0444]
[1764531588200,0.06993373,91526.0,91525.0,0.0444]
[1764531588401,0.08086043,91526.0,91525.0,0.0444]
[1764531588698,0.05543985,91526.0,91525.0,0.0444]
[1764531601212,0.0812094,91526.0,91525.0,0.0444]
[1764531603113,0.0702827,91526.0,91525.0,0.0444]
[1764531603805,0.04451315,91526.0,91525.0,0.0444]
[1764531614414,0.00027315,91526.0,91525.0,0.0444]
[1764531614814,0.02211315,91526.0,91525.0,0.0444]
[1764531615116,0.04480315,91526.0,91525.0,0.0444]
[1764531619520,0.04480315,91526.0,91525.0,0.4052]
[1764531620215,0.07059402,91526.0,91525.0,0.4052]
[1764531620924,0.04790402,91526.0,91525.0,0.4052]
[1764531621108,0.00027315,91526.0,91525.0,0.4052]
[1764531627519,0.0109247,91542.0,91534.0,0.04612]
[1764531627712,0.0109247,91542.0,91534.0,0.57896]
[1764531628023,0.02198908,91535.0,91534.0,0.5898856]
[1764531628227,0.04386908,91535.0,91534.0,0.5898856]
[1764531628620,0.06963112,91535.0,91534.0,0.5898856]
[1764531628823,0.06963112,91535.0,91534.0,0.5988856]
[1764531630026,0.06963112,91535.0,91534.0,0.6008856]
[1764531630230,0.08055662,91535.0,91534.0,0.41792]
[1764531630525,0.20610807,91535.0,91534.0,0.3718]
[1764531631329,0.20610807,91535.0,91534.0,0.39475]
[1764531631625,0.20610807,91535.0,91534.0,0.41792]
[1764531638328,0.20610807,91535.0,91534.0,0.05712]
[1764531638525,0.18034603,91535.0,91534.0,0.05712]
[1764531642830,0.18034603,91535.0,91534.0,0.011]
[1764531643023,0.18034603,91535.0,91513.0,0.0109281]
[1764531643024,0.0546875,91518.0,91517.0,0.40692]
[1764531643223,0.0946875,91518.0,91517.0,0.40692]
[1764531643424,0.21892444,91518.0,91517.0,0.40692]
[1764531648137,0.17892444,91518.0,91517.0,0.40692]
[1764531648639,0.17892444,91518.0,91517.0,0.04612]
[1764531648823,0.17892444,91518.0,91517.0,0.40692]
[1764531649028,0.16799694,91518.0,91517.0,0.40692]
[1764531653138,0.16799694,91518.0,91517.0,0.4178476]
[1764531653639,0.17892444,91518.0,91517.0,0.40692]
[1764531659143,0.31892444,91518.0,91517.0,0.40692]
[1764531662535,0.31892444,91518.0,91517.0,0.04612]
[1764531662740,0.31892444,91518.0,91517.0,0.40692]
[1764531666949,0.31892444,91518.0,91517.0,0.04612]
[1764531667247,0.31892444,91518.0,91517.0,0.40692]
[1764531683157,0.17892444,91518.0,91517.0,0.40692]
[1764531684559,0.12423694,91518.0,91517.0,0.40692]
[1764531684762,0.0109268,91525.0,91524.0,0.05705]
[1764531685162,0.03640566,91525.0,91524.0,0.05705]
[1764531685854,0.03740566,91525.0,91524.0,0.05705]
[1764531686054,0.03840566,91525.0,91524.0,0.05705]
[1764531687464,0.05964566,91525.0,91524.0,0.05705]
[1764531687860,0.08182566,91525.0,91524.0,0.05705]
[1764531688060,0.08182566,91525.0,91524.0,0.0435]
[1764531688461,0.08182566,91525.0,91524.0,0.0567]
[1764531692066,0.11182566,91525.0,91524.0,0.0567]
[1764531719606,0.11182566,91525.0,91524.0,0.0435]
[1764531720497,0.11182566,91525.0,91524.0,0.05684]
[1764531732615,0.08182566,91525.0,91524.0,0.0435]
[1764531732806,0.05444,91524.0,91523.0,0.3608]
[1764531733108,0.25991886,91524.0,91523.0,0.3608]
[1764531733411,0.25991886,91524.0,91523.0,0.38372]
[1764531733613,0.37706454,91524.0,91523.0,0.3608]
[1764531733806,0.37706454,91524.0,91523.0,0.382]
[1764531734005,0.37806454,91524.0,91523.0,0.382]
[1764531734213,0.37906454,91524.0,91523.0,0.40474]
[1764531734714,0.36993454,91524.0,91523.0,0.40474]
[1764531737513,0.36993454,91524.0,91523.0,0.04394]
[1764531738312,0.36993454,91524.0,91523.0,0.0548669]
[1764531738617,0.36993454,91524.0,91523.0,0.04394]
[1764531741416,0.25278886,91524.0,91523.0,0.04394]
[1764531775348,0.25278886,91524.0,91523.0,0.0212]
[1764531775552,0.04365,91521.0,91520.0,0.38199]
[1764531775752,0.21912886,91521.0,91520.0,0.38199]
[1764531775949,0.21912886,91521.0,91520.0,0.40357]
[1764531777254,0.22012886,91521.0,91520.0,0.40357]
[1764531777753,0.22112886,91521.0,91520.0,0.40357]
[1764531778653,0.19565,91521.0,91520.0,0.40357]
[1764531779352,0.19565,91521.0,91520.0,0.41732]
[1764531780655,0.002,91521.0,91520.0,0.41732]
[1764531786258,0.002,91521.0,91520.0,0.58932]
[1764531787957,0.02383,91521.0,91520.0,0.58932]
[1764531790360,0.002,91521.0,91520.0,0.58932]
[1764531790961,0.002,91521.0,91520.0,0.22852]
[1764531791162,0.002,91521.0,91520.0,0.58932]
[1764531795965,0.002,91521.0,91520.0,0.22852]
[1764531796156,0.002,91521.0,91520.0,0.58932]
[1764531798772,0.02378,91521.0,91520.0,0.58932]
[1764531798954,0.002,91521.0,91520.0,0.58932]
[1764531800372,0.002,91521.0,91520.0,0.22852]
[1764531800555,0.002,91521.0,91520.0,0.58932]
[1764531801258,0.002,91521.0,91520.0,0.22852]
[1764531801461,0.002,91521.0,91520.0,0.58932]
[1764531803975,0.002,91521.0,91520.0,0.22852]
[1764531804278,0.002,91521.0,91520.0,0.58932]
[1764531805972,0.002,91521.0,91520.0,0.22852]
[1764531806174,0.002,91521.0,91520.0,0.58932]
[1764531807375,0.02302,91521.0,91520.0,0.58932]
[1764531808676,0.04868642,91521.0,91520.0,0.58932]
[1764531810478,0.07110642,91521.0,91520.0,0.58932]
[1764531818587,0.04544,91521.0,91520.0,0.22852]
[1764531818881,0.04544,91521.0,91520.0,0.58932]
[1764531820483,0.04544,91521.0,91520.0,0.22852]
[1764531820685,0.04544,91521.0,91520.0,0.58932]
[1764531821886,0.04544,91521.0,91520.0,0.22852]
[1764531822085,0.04544,91521.0,91520.0,0.58932]
[1764531822575,0.04544,91521.0,91520.0,0.22852]
[1764531822776,0.04544,91521.0,91520.0,0.58932]
[1764531823183,0.02302,91521.0,91520.0,0.58932]
[1764531823887,0.02302,91521.0,91520.0,0.22852]
[1764531824079,0.02302,91521.0,91520.0,0.58932]
[1764531824480,0.02302,91521.0,91520.0,0.22852]
[1764531824680,0.02302,91521.0,91520.0,0.58932]
[1764531824982,0.002,91521.0,91520.0,0.58932]
[1764531838898,0.002,91521.0,91520.0,0.22852]
[1764531839099,0.002,91521.0,91520.0,0.58932]
[1764531839899,0.002,91521.0,91520.0,0.22852]
[1764531840095,0.002,91521.0,91520.0,0.58932]
[1764531845701,0.04678,91521.0,91520.0,0.58932]
[1764531846006,0.002,91521.0,91520.0,0.58932]
[1764531854410,0.002,91521.0,91520.0,0.22852]
[1764531854607,0.002,91521.0,91520.0,0.58932]
[1764531856210,0.002,91521.0,91520.0,0.22852]
[1764531856407,0.002,91521.0,91520.0,0.58932]
[1764531858609,0.0275713,91521.0,91520.0,0.58932]
[1764531859314,0.0275713,91521.0,91520.0,0.22852]
[1764531859511,0.0275713,91521.0,91520.0,0.58932]
[1764531860311,0.0275713,91521.0,91520.0,0.22852]
[1764531860504,0.0275713,91521.0,91520.0,0.58932]
[1764531860912,0.0275713,91521.0,91520.0,0.22852]
[1764531861105,0.0275713,91521.0,91520.0,0.58932]
[1764531862005,0.02757129,91521.0,91520.0,0.58932]
[1764531862912,0.002,91521.0,91520.0,0.58932]
[1764531864610,0.0275713,91521.0,91520.0,0.58932]
[1764531867516,0.0708613,91521.0,91520.0,0.41732]
[1764531878418,0.0708613,91521.0,91520.0,0.05652]
[1764531882026,0.04529,91521.0,91520.0,0.05652]
[1764531882226,0.07067605,91521.0,91520.0,0.05652]
[1764531883327,0.0542176,91517.0,91516.0,0.0333782]
[1764531883535,0.21960277,91517.0,91516.0,0.4156182]
[1764531884227,0.21960277,91517.0,91516.0,0.4290482]
[1764531884819,0.22060277,91517.0,91516.0,0.4290482]
[1764531885021,0.22160277,91517.0,91516.0,0.4290482]
[1764531885421,0.22160277,91517.0,91516.0,0.0682482]
[1764531893730,0.22160277,91517.0,91516.0,0.0333782]
[1764531893932,0.33910763,91517.0,91516.0,0.0007854]
[1764531894137,0.33910763,91517.0,91516.0,0.04268]
[1764531895437,0.33910763,91517.0,91516.0,0.05567869]
[1764531908451,0.33910763,91517.0,91516.0,0.01299869]
[1764531908646,0.0538186,91509.0,91508.0,0.05611]
[1764531909750,0.0548186,91509.0,91508.0,0.05611]
[1764531910257,0.0558186,91509.0,91508.0,0.06891611]
[1764531911252,0.08161535,91509.0,91508.0,0.06891611]
[1764531919462,0.02779675,91509.0,91508.0,0.06891611]
[1764531919763,0.002,91509.0,91508.0,0.06891611]
[1764531922466,0.0109279,91515.0,91514.0,0.04469]
[1764531922964,0.0109279,91515.0,91514.0,0.055618]
[1764531923767,0.0119279,91515.0,91514.0,0.055618]
[1764531924763,0.0129279,91515.0,91514.0,0.055618]
[1764531926868,0.0129279,91515.0,91514.0,0.069378]
[1764531927362,0.002,91515.0,91514.0,0.069378]
[1764531932361,0.0109265,91528.0,91527.0,0.04604]
[1764531932559,0.02,91528.0,91527.0,0.04604]
[1764531932758,0.04555979,91528.0,91527.0,0.04604]
[1764531933164,0.02,91528.0,91527.0,0.04604]
[1764531933564,0.00010908,91535.0,91534.0,0.04604]
[1764531934673,0.00010908,91535.0,91534.0,0.04804]
[1764531934869,0.01103458,91535.0,91534.0,0.04804]
[1764531935071,0.05527458,91535.0,91534.0,0.05304]
[1764531935271,0.05527458,91535.0,91525.0,0.00016388]
[1764531935272,0.04424,91526.0,91525.0,0.00016388]
[1764531935472,0.51057709,91526.0,91525.0,0.04620388]
[1764531935778,0.63444951,91526.0,91525.0,0.04620388]
[1764531943475,0.27364951,91526.0,91525.0,0.04620388]
[1764531950187,0.14977709,91526.0,91525.0,0.04620388]
[1764531950484,0.06977709,91526.0,91525.0,0.04620388]
[1764531956090,0.04823709,91526.0,91525.0,0.04620388]
[1764531957992,0.07113709,91526.0,91525.0,0.04620388]
[1764531958786,0.0456,91526.0,91525.0,0.04620388]
[1764531963413,0.033356,91531.0,91530.0,0.01317]
[1764531963708,0.02253908,91535.0,91534.0,0.0441]
[1764531963900,0.04543908,91535.0,91534.0,0.0441]
[1764531964102,0.04543908,91535.0,91534.0,0.0550256]
[1764531965311,0.04543908,91535.0,91534.0,0.0570256]
[1764531966307,0.04543908,91535.0,91534.0,0.0590256]
[1764531973112,0.02253908,91535.0,91534.0,0.0590256]
[1764531973318,0.00010908,91535.0,91534.0,0.0590256]
[1764531974420,0.04500908,91535.0,91534.0,0.0590256]
[1764531979732,0.02305908,91535.0,91534.0,0.0590256]
[1764531980025,0.00010908,91535.0,91534.0,0.0590256]
[1764531988533,0.00010908,91535.0,91534.0,0.4198256]
[1764531988925,0.02534394,91535.0,91534.0,0.4198256]
[1764531989630,0.0336039,91549.0,91548.0,0.0676938]
[1764531989825,0.0557139,91549.0,91548.0,0.0676938]
[1764531990735,0.0557139,91549.0,91548.0,0.0696938]
[1764531990929,0.0557139,91549.0,91548.0,0.0706938]
[1764531997335,0.0557139,91549.0,91548.0,0.05977]
[1764531998341,0.0557139,91549.0,91548.0,0.04792]
[1764532001543,0.0557139,91549.0,91548.0,0.003]
[1764532001746,0.62538024,91549.0,91548.0,0.003]
[1764532006349,0.86538024,91549.0,91548.0,0.003]
[1764532006645,0.8653842,91549.0,91548.0,0.003]
[1764532007346,0.5045842,91549.0,91548.0,0.003]
[1764532007546,0.8653842,91549.0,91548.0,0.003]
[1764532008741,0.8653842,91549.0,91548.0,0.04721]
[1764532009649,0.8653842,91549.0,91548.0,0.003]
[1764532011145,0.0557466,91526.0,91525.0,0.04437388]
[1764532011351,0.08086869,91526.0,91525.0,0.04437388]
[1764532012451,0.08386869,91526.0,91525.0,0.04437388]
[1764532012950,0.08086869,91526.0,91525.0,0.04437388]
[1764532013153,0.08386869,91526.0,91525.0,0.04437388]
[1764532014157,0.0587466,91526.0,91525.0,0.04437388]
[1764532020058,0.0587466,91526.0,91525.0,0.00016388]
[1764532020457,0.0587466,91526.0,91525.0,0.04437388]
[1764532036270,0.08381399,91526.0,91525.0,0.04437388]
[1764532048390,0.19381399,91526.0,91525.0,0.04437388]
[1764532048600,0.08381399,91526.0,91525.0,0.04437388]
[1764532049696,0.19381399,91526.0,91525.0,0.04437388]
[1764532056100,0.08381399,91526.0,91525.0,0.04437388]
[1764532059001,0.12381399,91526.0,91525.0,0.04437388]
[1764532082730,0.12386184,91526.0,91525.0,0.04437388]
[1764532091148,0.12386184,91526.0,91525.0,0.00016388]
[1764532091149,0.13716184,91526.0,91525.0,0.00016388]
[1764532091347,0.47288946,91526.0,91525.0,0.00016388]
[1764532093940,0.47288946,91526.0,91525.0,0.02323388]
[1764532095745,0.47288946,91526.0,91525.0,0.04608388]
[1764532095946,0.47288946,91526.0,91525.0,0.00016388]
[1764532097051,0.47288946,91526.0,91525.0,0.02202388]
[1764532100553,0.45958946,91526.0,91525.0,0.04487388]
[1764532105454,0.82038946,91526.0,91525.0,0.04487388]
[1764532105953,0.82038946,91526.0,91525.0,0.02202388]
[1764532107754,0.82038946,91526.0,91525.0,0.00016388]
[1764532107955,0.82038946,91526.0,91525.0,0.02253388]
[1764532108458,0.45958946,91526.0,91525.0,0.02253388]
[1764532108757,0.82038946,91526.0,91525.0,0.02253388]
[1764532109152,0.82038946,91526.0,91512.0,0.37351]
[1764532109153,0.0549781,91513.0,91512.0,0.40642]
[1764532109359,0.1449781,91513.0,91512.0,0.40642]
[1764532110260,0.1509781,91513.0,91512.0,0.40642]
[1764532110859,0.1499781,91513.0,91512.0,0.40642]
[1764532111060,0.1509781,91513.0,91512.0,0.40642]
[1764532111263,0.1459781,91513.0,91512.0,0.40642]
[1764532111454,0.1509781,91513.0,91512.0,0.40642]
[1764532115066,0.30138275,91513.0,91512.0,0.38317]
[1764532115861,0.30138275,91513.0,91512.0,0.40642]
[1764532118766,0.27609352,91513.0,91512.0,0.40642]
[1764532118962,0.27609352,91513.0,91512.0,0.38317]
[1764532119163,0.0109286,91509.0,91508.0,0.01280611]
[1764532119369,0.19025318,91509.0,91508.0,0.02237]
[1764532119669,0.30846026,91509.0,91508.0,0.04562]
[1764532119864,0.30846026,91509.0,91508.0,0.02237]
[1764532120066,0.0549792,91504.0,91503.0,0.04578388]
[1764532120260,0.1349792,91504.0,91503.0,0.04578388]
[1764532120455,0.25531786,91504.0,91503.0,0.04578388]
[1764532120866,0.25531786,91504.0,91503.0,0.06000025]
[1764532122367,0.26031786,91504.0,91503.0,0.06000025]
[1764532122766,0.25631786,91504.0,91503.0,0.06000025]
[1764532122972,0.26131786,91504.0,91503.0,0.06000025]
[1764532124070,0.28655972,91504.0,91503.0,0.01438025]
[1764532125366,0.64735972,91504.0,91503.0,0.01438025]
[1764532130673,0.28655972,91504.0,91503.0,0.01438025]
[1764532130976,0.64735972,91504.0,91503.0,0.01438025]
[1764532134780,0.65733972,91504.0,91503.0,0.01438025]
[1764532135379,1.02733972,91504.0,91503.0,0.01438025]
[1764532138788,1.19937972,91504.0,91503.0,0.01438025]
[1764532139085,0.0552305,91493.0,91492.0,0.05787]
[1764532140884,0.0562305,91493.0,91492.0,0.05787]
[1764532141076,0.0862305,91493.0,91492.0,0.05777021]
[1764532141482,0.0912305,91493.0,91492.0,0.05777021]
[1764532141988,0.0912305,91493.0,91492.0,0.07062021]
[1764532142586,0.0612305,91493.0,91492.0,0.07062021]
[1764532143087,0.1012305,91493.0,91492.0,0.07062021]
[1764532154203,0.1266324,91493.0,91492.0,0.07062021]
[1764532155797,0.1012305,91493.0,91492.0,0.07062021]
[1764532156799,0.12663468,91493.0,91492.0,0.07062021]
[1764532173409,0.07140418,91493.0,91492.0,0.07062021]
[1764532173713,0.006,91493.0,91492.0,0.07062021]
[1764532174514,0.02722,91493.0,91492.0,0.07062021]
[1764532180115,0.006,91493.0,91492.0,0.07062021]
[1764532186412,0.006,91493.0,91492.0,0.43142021]
[1764532189218,0.036,91493.0,91492.0,0.43142021]
[1764532189427,0.03785896,91493.0,91492.0,0.43142021]
[1764532189622,0.00785896,91493.0,91492.0,0.43142021]
[1764532189822,0.00935005,91493.0,91492.0,0.43142021]
[1764532191327,0.01084114,91493.0,91492.0,0.43142021]
[1764532191826,0.01233223,91493.0,91492.0,0.43142021]
[1764532192829,0.006,91493.0,91492.0,0.43142021]
[1764532193022,0.01382332,91493.0,91492.0,0.43142021]
[1764532193324,0.01531441,91493.0,91492.0,0.43142021]
[1764532194429,0.0168055,91493.0,91492.0,0.43142021]
[1764532194824,0.01696898,91493.0,91492.0,0.43142021]
[1764532195130,0.01713246,91493.0,91492.0,0.43142021]
[1764532195426,0.01729594,91493.0,91492.0,0.43142021]
[1764532196229,0.01745942,91493.0,91492.0,0.43142021]
[1764532196531,0.0176229,91493.0,91492.0,0.43142021]
[1764532196933,0.01778638,91493.0,91492.0,0.07062021]
[1764532197128,0.01778638,91493.0,91492.0,0.43142021]
[1764532197325,0.01794986,91493.0,91492.0,0.43142021]
[1764532197730,0.01811334,91493.0,91492.0,0.43142021]
[1764532197929,0.01827682,91493.0,91492.0,0.43142021]
[1764532198330,0.01827682,91493.0,91492.0,0.07062021]
[1764532198533,0.01827682,91493.0,91492.0,0.43142021]
[1764532199031,0.0184403,91493.0,91492.0,0.43142021]
[1764532199331,0.01860378,91493.0,91492.0,0.07062021]
[1764532199533,0.01860378,91493.0,91492.0,0.43142021]
[1764532199731,0.01876726,91493.0,91492.0,0.43142021]
[1764532200133,0.01893074,91493.0,91492.0,0.43142021]
[1764532201036,0.02040755,91493.0,91492.0,0.43142021]
[1764532201536,0.02189095,91493.0,91492.0,0.43142021]
[1764532203236,0.02336776,91493.0,91492.0,0.43142021]
[1764532203635,0.006,91493.0,91492.0,0.43142021]
[1764532203836,0.006,91493.0,91492.0,0.60346021]
[1764532203837,0.01030037,91493.0,91492.0,0.60346021]
[1764532204336,0.0109292,91504.0,91492.0,0.60346021]
[1764532204542,0.1338492,91504.0,91503.0,0.03376997]
[1764532204731,0.1338492,91504.0,91503.0,0.04469927]
[1764532204934,0.13532601,91504.0,91503.0,0.03376997]
[1764532205136,0.13532601,91504.0,91503.0,0.04469927]
[1764532205338,0.1373855,91504.0,91503.0,0.04469927]
[1764532205534,0.1423855,91504.0,91503.0,0.04469927]
[1764532205943,0.0623855,91504.0,91503.0,0.04469927]
[1764532206939,0.0623855,91504.0,91503.0,0.03376997]
[1764532207147,0.1123855,91504.0,91503.0,0.03376997]
[1764532208838,0.1377131,91504.0,91503.0,0.03376997]
[1764532210437,0.1377131,91504.0,91503.0,0.04386616]
[1764532213741,0.1267839,91504.0,91503.0,0.04386616]
[1764532217339,0.0767839,91504.0,91503.0,0.04386616]
[1764532218845,0.1214563,91504.0,91503.0,0.04386616]
[1764532223945,0.0514563,91504.0,91503.0,0.04386616]
[1764532224148,0.1314563,91504.0,91503.0,0.04386616]
[1764532226437,0.0514563,91504.0,91503.0,0.04386616]
[1764532226945,0.1414563,91504.0,91503.0,0.04386616]
[1764532227143,0.1414563,91504.0,91503.0,0.02252616]
[1764532227441,0.1494963,91504.0,91503.0,0.02252616]
[1764532227746,0.1494963,91504.0,91503.0,0.04509616]
[1764532229847,0.1414563,91504.0,91503.0,0.04509616]
[1764532233244,0.1666286,91504.0,91503.0,0.04509616]
[1764532233758,0.1798486,91504.0,91503.0,0.01009619]